bitfinex-derivatives/quotes_BTCF0:USTF0_20241117
["timestamp","ask_amount","ask_price","bid_price","bid_amount"]
[1731816529410,0.055318,90354.0,90340.0,0.416127]
[1731816529799,0.08668,90356.0,90340.0,0.416127]
[1731816529800,0.00012048,90355.0,90340.0,0.52695785]
[1731816530620,0.055318,90354.0,90340.0,0.52695785]
[1731816530823,0.10649253,90351.0,90340.0,0.41625389]
[1731816531311,0.055323,90347.0,90340.0,0.41625389]
[1731816531503,0.08729,90341.0,90340.0,0.00012689]
[1731816531911,0.11739,90341.0,90340.0,0.00012689]
[1731816533004,0.11739,90341.0,90319.0,0.3608]
[1731816533199,0.055335,90327.0,90323.0,0.055337]
[1731816533409,0.0328,90340.0,90323.0,0.055337]
[1731816533410,0.46563157,90335.0,90323.0,0.055337]
[1731816533611,0.05533,90334.0,90323.0,0.055337]
[1731816533910,0.055335,90326.0,90324.0,0.055336]
[1731816534302,0.055335,90326.0,90325.0,0.00011596]
[1731816534702,0.416135,90326.0,90305.0,0.055348]
[1731816535013,0.055346,90308.0,90305.0,0.055348]
[1731816535511,0.055336,90325.0,90295.0,0.0221423]
[1731816535512,0.055332,90323.0,90318.0,0.055334]
[1731816535703,0.08952,90322.0,90315.0,0.7216]
[1731816535905,0.10483157,90328.0,90315.0,0.7216]
[1731816536113,0.12082,90327.0,90316.0,9.59e-05]
[1731816536422,0.05533,90326.0,90325.0,0.3608]
[1731816536622,0.05533,90326.0,90316.0,9.59e-05]
[1731816536623,0.05533,90325.0,90321.0,0.055333]
[1731816536919,0.08952,90324.0,90323.0,0.055331]
[1731816537631,0.08952,90324.0,90323.0,0.416131]
[1731816538121,0.08952,90324.0,90323.0,0.3608]
[1731816539420,0.05533,90325.0,90323.0,0.3608]
[1731816539823,0.05533,90325.0,90323.0,0.416131]
[1731816540121,0.12082,90327.0,90324.0,0.055331]
[1731816540319,0.176149,90327.0,90324.0,0.055331]
[1731816541407,0.176149,90327.0,90323.0,0.3608]
[1731816541408,0.12082,90327.0,90323.0,0.3608]
[1731816541607,0.055331,90325.0,90323.0,0.3608]
[1731816543021,0.055331,90325.0,90323.0,0.416131]
[1731816543417,0.12082,90327.0,90323.0,0.416131]
[1731816543418,0.12082,90327.0,90325.0,0.05533]
[1731816543614,0.0221423,90336.0,90323.0,0.3608]
[1731816543615,0.055324,90336.0,90323.0,0.3608]
[1731816543925,0.10483157,90332.0,90324.0,0.26181952]
[1731816544110,0.10483157,90332.0,90323.0,0.3608]
[1731816544111,0.16015757,90332.0,90326.0,0.26181952]
[1731816544315,0.087223,90338.0,90333.0,0.055325]
[1731816544515,0.055323,90337.0,90333.0,0.055325]
[1731816544714,0.0319,90338.0,90333.0,0.055325]
[1731816544921,0.0319,90338.0,90334.0,0.055324]
[1731816544922,0.055324,90336.0,90334.0,0.055324]
[1731816545522,0.08952,90342.0,90337.0,0.055323]
[1731816545724,0.055321,90340.0,90338.0,0.055322]
[1731816545926,0.055321,90340.0,90339.0,0.3608]
[1731816546314,0.055321,90340.0,90331.0,0.3608]
[1731816546315,0.055324,90335.0,90334.0,0.26181952]
[1731816546522,0.055324,90335.0,90331.0,0.3608]
[1731816546523,0.055325,90333.0,90331.0,0.62261952]
[1731816546716,0.055325,90333.0,90331.0,0.3608]
[1731816550526,0.055323,90337.0,90334.0,0.055324]
[1731816550824,0.08952,90338.0,90334.0,0.055324]
[1731816550825,0.055324,90336.0,90334.0,0.055324]
[1731816551733,0.055324,90336.0,90335.0,0.26247554]
[1731816551930,0.08952,90338.0,90332.0,0.26247554]
[1731816551931,0.055325,90334.0,90332.0,0.26247554]
[1731816552125,0.055325,90334.0,90333.0,0.26247554]
[1731816552323,0.08952,90338.0,90331.0,0.3608]
[1731816552527,0.055323,90337.0,90335.0,0.26270321]
[1731816552836,0.055324,90335.0,90334.0,0.26270321]
[1731816553127,0.055326,90333.0,90331.0,0.6880816]
[1731816553628,0.055326,90333.0,90331.0,0.3608]
[1731816553819,0.055326,90333.0,90331.0,0.6880816]
[1731816554025,0.16015757,90333.0,90331.0,0.3608]
[1731816554433,0.032,90332.0,90331.0,0.3608]
[1731816555437,0.055326,90333.0,90331.0,0.3608]
[1731816555624,0.055326,90333.0,90332.0,0.26291016]
[1731816555820,0.055322,90339.0,90331.0,0.3608]
[1731816556031,0.055324,90336.0,90335.0,0.055324]
[1731816557523,0.055324,90336.0,90335.0,0.31825539]
[1731816558224,0.055324,90336.0,90335.0,0.055324]
[1731816558631,0.055324,90336.0,90335.0,0.31824847]
[1731816558826,0.055324,90336.0,90335.0,0.055324]
[1731816559426,0.055324,90336.0,90335.0,0.31826332]
[1731816559628,0.055324,90336.0,90335.0,0.055324]
[1731816560028,0.055324,90336.0,90335.0,0.31826939]
[1731816560229,0.055324,90336.0,90335.0,0.055324]
[1731816560433,0.055325,90334.0,90332.0,0.055326]
[1731816561237,0.055325,90334.0,90332.0,0.04332375]
[1731816561238,0.16015657,90334.0,90332.0,0.04332375]
[1731816561538,0.055326,90332.0,90331.0,0.3608]
[1731816562341,0.055326,90332.0,90331.0,0.40483724]
[1731816563050,0.055326,90332.0,90331.0,0.3608]
[1731816565239,0.055326,90332.0,90331.0,0.72922606]
[1731816565443,0.055323,90338.0,90335.0,0.055324]
[1731816565743,0.10483157,90343.0,90335.0,0.055324]
[1731816565744,0.055323,90337.0,90336.0,0.69786655]
[1731816566040,0.055323,90337.0,90336.0,0.36880997]
[1731816568544,0.08976,90342.0,90336.0,0.36880997]
[1731816568748,0.00104001,90346.0,90345.0,0.055318]
[1731816568929,0.08976,90350.0,90345.0,0.36880997]
[1731816569137,0.08976,90350.0,90349.0,0.3608]
[1731816569335,0.08976,90350.0,90349.0,0.72877629]
[1731816569639,0.08976,90350.0,90349.0,1.05777146]
[1731816569941,0.08976,90350.0,90349.0,0.68966409]
[1731816570337,0.08976,90350.0,90349.0,0.3608]
[1731816571946,0.08976,90350.0,90349.0,0.68966409]
[1731816572141,0.08976,90350.0,90349.0,1.05820705]
[1731816572333,0.08976,90350.0,90349.0,0.68966409]
[1731816572534,0.08976,90350.0,90349.0,1.05807817]
[1731816572941,0.055315,90351.0,90349.0,0.68966409]
[1731816573150,0.08988048,90355.0,90354.0,0.055312]
[1731816574352,0.08988048,90355.0,90354.0,0.31807734]
[1731816574746,0.08988048,90355.0,90354.0,0.055312]
[1731816578456,0.00012048,90355.0,90354.0,0.055312]
[1731816579751,0.10483157,90370.0,90365.0,0.055305]
[1731816579952,0.10483157,90370.0,90352.0,0.3608]
[1731816579953,0.10483157,90370.0,90369.0,0.3608]
[1731816580853,0.10494935,90370.0,90369.0,0.3608]
[1731816581552,0.00011778,90370.0,90369.0,0.3608]
[1731816581738,0.00011778,90370.0,90369.0,0.3922]
[1731816582247,0.00011778,90370.0,90369.0,0.39231847]
[1731816582444,0.00011778,90370.0,90369.0,0.36091847]
[1731816583441,0.00011778,90370.0,90369.0,0.00011847]
[1731816588855,0.05531,90358.0,90357.0,0.0052]
[1731816589054,0.05531,90358.0,90350.0,0.26229529]
[1731816589055,0.055316,90349.0,90347.0,0.26229529]
[1731816589254,0.19455157,90358.0,90344.0,0.3608]
[1731816589255,0.055317,90346.0,90344.0,0.3608]
[1731816589444,0.055317,90346.0,90341.0,0.0447533]
[1731816589644,0.055317,90346.0,90344.0,0.3608]
[1731816589862,0.055322,90339.0,90338.0,0.0307]
[1731816590093,0.055322,90339.0,90333.0,0.0052]
[1731816590094,0.10483157,90339.0,90333.0,0.26214676]
[1731816590243,0.055326,90332.0,90328.0,0.26214676]
[1731816590448,0.055326,90332.0,90329.0,0.00013848]
[1731816590646,0.055326,90332.0,90331.0,0.3608]
[1731816591165,0.055323,90338.0,90331.0,0.3608]
[1731816591357,0.055323,90337.0,90331.0,0.3608]
[1731816591656,0.08972,90342.0,90331.0,0.3608]
[1731816591858,0.08972,90342.0,90333.0,0.055325]
[1731816592156,0.10483157,90347.0,90331.0,0.62294676]
[1731816592356,0.08972,90346.0,90339.0,0.055321]
[1731816592562,0.08972,90346.0,90342.0,0.3608]
[1731816592758,0.08972,90350.0,90345.0,0.055318]
[1731816593063,0.055315,90351.0,90345.0,0.055318]
[1731816593255,0.055315,90351.0,90350.0,0.3608]
[1731816593559,0.24986357,90355.0,90350.0,0.416115]
[1731816593759,0.055313,90353.0,90350.0,0.416115]
[1731816593955,0.055314,90352.0,90350.0,0.3608]
[1731816594151,0.19455157,90355.0,90349.0,0.26214676]
[1731816594357,0.19455157,90355.0,90345.0,0.04469407]
[1731816594358,0.19455157,90355.0,90345.0,0.26214676]
[1731816594565,0.16014857,90346.0,90344.0,0.26214676]
[1731816594861,0.10483157,90346.0,90345.0,0.26214676]
[1731816595060,0.055315,90351.0,90346.0,0.055317]
[1731816595268,0.055315,90351.0,90346.0,0.31746376]
[1731816595466,0.08972,90355.0,90352.0,0.055314]
[1731816595766,0.145511,90357.0,90353.0,0.055313]
[1731816595953,0.145511,90357.0,90353.0,0.31745976]
[1731816596153,0.145511,90357.0,90355.0,0.055311]
[1731816596661,0.145508,90362.0,90356.0,0.06081812]
[1731816596864,0.145508,90362.0,90360.0,0.3608]
[1731816597054,0.145508,90362.0,90361.0,0.00550712]
[1731816597260,0.145508,90362.0,90361.0,0.26766661]
[1731816597447,0.145508,90362.0,90361.0,0.26215949]
[1731816597654,0.055308,90362.0,90360.0,0.62295949]
[1731816598162,0.055308,90362.0,90361.0,0.26215949]
[1731816598374,0.10483157,90364.0,90361.0,0.26221071]
[1731816598662,0.10483157,90364.0,90362.0,0.31751871]
[1731816598848,0.10483157,90364.0,90362.0,0.055308]
[1731816600156,0.16013857,90364.0,90362.0,0.055308]
[1731816600359,0.16013857,90364.0,90361.0,0.0305]
[1731816600360,0.10483157,90364.0,90361.0,0.0305]
[1731816600564,0.055308,90362.0,90361.0,0.0305]
[1731816601265,0.10483157,90364.0,90361.0,0.0305]
[1731816601467,0.0902,90366.0,90364.0,0.055306]
[1731816602161,0.00011778,90370.0,90369.0,0.055303]
[1731816602357,0.00011778,90370.0,90369.0,0.67825657]
[1731816602864,0.00011778,90370.0,90369.0,0.416103]
[1731816603272,0.00011778,90370.0,90369.0,0.67825657]
[1731816603464,0.00011778,90370.0,90369.0,0.416103]
[1731816604056,0.00011778,90370.0,90369.0,0.74496709]
[1731816604259,0.00166027,90374.0,90369.0,1.12555112]
[1731816604451,0.00166027,90374.0,90369.0,0.3608]
[1731816604763,0.00166027,90374.0,90372.0,0.055301]
[1731816605356,0.00166027,90374.0,90373.0,0.26208343]
[1731816605771,0.00166027,90374.0,90372.0,0.055301]
[1731816606357,0.00166027,90374.0,90373.0,0.0304]
[1731816606558,0.00011377,90380.0,90374.0,0.0553]
[1731816606753,0.00011377,90380.0,90379.0,0.055297]
[1731816606954,0.00011377,90380.0,90379.0,0.31721886]
[1731816607154,0.00011377,90380.0,90379.0,0.055297]
[1731816607661,0.00011377,90380.0,90377.0,0.3608]
[1731816607857,0.055306,90365.0,90361.0,0.19652852]
[1731816608063,0.055306,90365.0,90359.0,0.19652852]
[1731816608064,0.1535,90364.0,90359.0,0.19652852]
[1731816608265,0.055307,90363.0,90362.0,0.3608]
[1731816610565,0.0453288,90380.0,90379.0,0.055297]
[1731816610787,0.0453288,90380.0,90379.0,0.06087553]
[1731816611156,0.0453288,90380.0,90379.0,0.09377553]
[1731816611359,0.00011377,90380.0,90379.0,0.09377427]
[1731816612058,0.0902,90393.0,90379.0,0.03847727]
[1731816612259,0.0902,90393.0,90386.0,0.3608]
[1731816612462,0.055291,90389.0,90388.0,0.055291]
[1731816612659,0.0902,90393.0,90386.0,0.3608]
[1731816612869,0.055291,90389.0,90388.0,0.05529]
[1731816613156,0.055291,90389.0,90386.0,0.3608]
[1731816613157,0.0902,90393.0,90391.0,0.055289]
[1731816614874,0.00013812,90395.0,90394.0,0.055288]
[1731816615376,0.00165971,90404.0,90394.0,0.055288]
[1731816615563,0.00165971,90404.0,90399.0,0.055285]
[1731816615762,0.00165971,90404.0,90399.0,0.06084273]
[1731816616061,0.00165971,90404.0,90399.0,0.09324273]
[1731816616260,0.10483157,90428.0,90399.0,0.25341549]
[1731816616571,0.00120001,90431.0,90417.0,0.3608]
[1731816616572,0.00010235,90425.0,90417.0,0.3608]
[1731816616758,0.055272,90421.0,90418.0,0.055273]
[1731816617160,0.055272,90421.0,90419.0,0.05538747]
[1731816617469,0.055272,90421.0,90419.0,0.00011447]
[1731816617772,0.055272,90421.0,90419.0,0.05538647]
[1731816618076,0.00010235,90425.0,90420.0,0.055272]
[1731816618077,0.05537135,90425.0,90420.0,0.055272]
[1731816618270,0.055272,90421.0,90419.0,0.00011447]
[1731816619780,0.0314,90420.0,90419.0,0.00011447]
[1731816619970,0.0625,90420.0,90419.0,0.00011447]
[1731816621579,0.0625,90420.0,90397.0,0.055286]
[1731816621580,0.055273,90419.0,90397.0,0.055286]
[1731816621763,0.10483157,90412.0,90399.0,0.3932]
[1731816621964,0.055274,90417.0,90407.0,0.3608]
[1731816622197,0.10483157,90414.0,90399.0,0.0324]
[1731816622475,0.055276,90413.0,90410.0,0.00013003]
[1731816622672,0.055278,90411.0,90410.0,0.00013003]
[1731816626179,0.055274,90418.0,90410.0,0.00013003]
[1731816626483,0.055274,90418.0,90415.0,0.055275]
[1731816626777,0.055274,90418.0,90416.0,0.055274]
[1731816626969,5.148e-05,90420.0,90410.0,0.03193003]
[1731816627171,5.148e-05,90420.0,90417.0,0.3608]
[1731816627768,5.148e-05,90420.0,90419.0,0.3608]
[1731816628983,5.148e-05,90420.0,90419.0,0.393]
[1731816630578,5.148e-05,90420.0,90413.0,0.055276]
[1731816631681,0.05532348,90420.0,90417.0,0.055274]
[1731816632284,0.055277,90413.0,90411.0,0.416077]
[1731816632486,0.10483157,90412.0,90411.0,0.3608]
[1731816633186,0.055277,90413.0,90411.0,0.3608]
[1731816633376,0.055277,90413.0,90411.0,0.416077]
[1731816634181,0.055277,90413.0,90411.0,0.3608]
[1731816634493,0.10488305,90420.0,90410.0,0.00013003]
[1731816634786,0.055278,90411.0,90410.0,0.00013003]
[1731816636191,0.055275,90416.0,90412.0,0.055277]
[1731816636493,0.055277,90412.0,90410.0,0.00013003]
[1731816638590,0.055277,90412.0,90411.0,0.00549606]
[1731816638982,0.055277,90412.0,90410.0,0.00013003]
[1731816639981,0.10483157,90411.0,90410.0,0.19600557]
[1731816640178,0.10483157,90411.0,90410.0,0.00013003]
[1731816642582,0.10483157,90411.0,90410.0,0.05540803]
[1731816642583,0.09496,90411.0,90410.0,0.05540803]
[1731816642798,0.09496,90411.0,90410.0,0.25128357]
[1731816643291,0.09496,90411.0,90410.0,0.05540803]
[1731816643494,0.16010557,90417.0,90412.0,0.055277]
[1731816643692,0.16010557,90417.0,90416.0,0.19662389]
[1731816643894,0.055276,90415.0,90413.0,0.3608]
[1731816644193,0.10483157,90417.0,90410.0,0.05540803]
[1731816644194,0.055276,90413.0,90410.0,0.05540803]
[1731816644398,0.055277,90412.0,90410.0,0.05540803]
[1731816644783,0.055277,90412.0,90410.0,0.00013003]
[1731816645491,0.055277,90412.0,90410.0,0.19687808]
[1731816645691,0.0309,90411.0,90410.0,0.00013003]
[1731816646502,0.16010957,90410.0,90404.0,0.19674805]
[1731816646706,0.055286,90398.0,90397.0,0.19678335]
[1731816646892,0.055286,90398.0,90396.0,0.19678335]
[1731816647197,0.055287,90396.0,90394.0,0.19678335]
[1731816647400,0.055289,90393.0,90391.0,0.00013057]
[1731816647608,0.10483157,90392.0,90391.0,0.00013057]
[1731816652197,0.0052,90403.0,90402.0,0.055283]
[1731816652407,0.23674711,90414.0,90410.0,0.055278]
[1731816652408,0.10483157,90414.0,90410.0,0.055278]
[1731816652706,0.10483157,90414.0,90410.0,0.416078]
[1731816652889,0.10483157,90414.0,90410.0,0.61253561]
[1731816653290,0.10483157,90414.0,90410.0,0.416078]
[1731816653494,0.055277,90413.0,90410.0,0.61253561]
[1731816653707,0.055277,90413.0,90410.0,0.055278]
[1731816653897,0.10483157,90414.0,90409.0,0.19645761]
[1731816654203,0.10483157,90414.0,90411.0,0.3608]
[1731816654403,0.095,90419.0,90412.0,0.19645761]
[1731816654597,0.095,90419.0,90416.0,0.055274]
[1731816655097,0.09485148,90420.0,90417.0,0.055274]
[1731816655293,5.148e-05,90420.0,90419.0,0.55723511]
[1731816655494,5.148e-05,90420.0,90419.0,0.3608]
[1731816656805,5.148e-05,90420.0,90411.0,0.3608]
[1731816657104,0.055273,90419.0,90415.0,0.055275]
[1731816658105,5.148e-05,90420.0,90412.0,0.32886409]
[1731816658314,0.05532348,90420.0,90419.0,0.3608]
[1731816658617,0.05532348,90420.0,90410.0,0.32886409]
[1731816658618,0.055277,90412.0,90410.0,0.32886409]
[1731816658911,0.05532348,90420.0,90403.0,0.0052]
[1731816658912,0.055282,90404.0,90403.0,0.0052]
[1731816659106,0.10483157,90413.0,90400.0,0.32886409]
[1731816659309,0.055278,90411.0,90410.0,0.19647395]
[1731816659607,0.055278,90411.0,90400.0,0.32886409]
[1731816659608,0.055278,90411.0,90409.0,0.19647395]
[1731816660199,0.055278,90411.0,90399.0,0.055285]
[1731816660200,0.055278,90411.0,90410.0,0.19647395]
[1731816660795,0.055278,90411.0,90405.0,0.3608]
[1731816661100,0.10483157,90413.0,90405.0,0.055281]
[1731816661306,0.055277,90412.0,90411.0,0.19648641]
[1731816662210,0.10483157,90413.0,90400.0,0.33406409]
[1731816662513,0.10483157,90413.0,90401.0,0.32886409]
[1731816662715,0.10483157,90413.0,90400.0,0.38414809]
[1731816663013,0.10483157,90413.0,90397.0,0.3608]
[1731816663014,0.10483157,90413.0,90410.0,0.19651598]
[1731816663195,0.055277,90412.0,90410.0,0.19651598]
[1731816663511,0.055277,90412.0,90402.0,0.055283]
[1731816663512,0.055277,90412.0,90411.0,0.19651598]
[1731816663713,0.10483157,90413.0,90402.0,0.38414709]
[1731816663714,0.05528,90408.0,90402.0,0.38414709]
[1731816663908,0.055281,90406.0,90402.0,0.38414709]
[1731816664712,0.055281,90406.0,90403.0,0.055282]
[1731816665812,0.10483157,90413.0,90401.0,0.32886409]
[1731816666015,0.0948,90412.0,90406.0,0.05528]
[1731816666214,0.055281,90406.0,90401.0,0.32886409]
[1731816666411,0.0948,90412.0,90401.0,0.32886409]
[1731816666600,0.055279,90409.0,90404.0,0.055281]
[1731816667222,0.0948,90412.0,90404.0,0.055281]
[1731816667223,0.05528,90408.0,90404.0,0.055281]
[1731816667514,0.05528,90407.0,90404.0,0.055281]
[1731816667720,0.0948,90412.0,90408.0,0.055279]
[1731816667902,0.16010757,90413.0,90409.0,0.26211914]
[1731816668104,0.0948,90416.0,90411.0,0.055278]
[1731816668303,5.148e-05,90420.0,90415.0,0.3608]
[1731816668502,5.148e-05,90420.0,90418.0,0.055273]
[1731816669310,5.148e-05,90420.0,90418.0,0.31739214]
[1731816669715,5.148e-05,90420.0,90418.0,0.25183817]
[1731816670421,5.148e-05,90420.0,90419.0,0.19656517]
[1731816670811,5.148e-05,90420.0,90418.0,0.055273]
[1731816673309,5.148e-05,90420.0,90419.0,0.19650141]
[1731816674507,5.148e-05,90420.0,90418.0,0.055273]
[1731816677111,5.148e-05,90420.0,90419.0,0.26180957]
[1731816677315,5.148e-05,90420.0,90418.0,0.055273]
[1731816678621,5.148e-05,90420.0,90418.0,0.38413709]
[1731816679020,5.148e-05,90420.0,90418.0,0.055273]
[1731816679322,5.148e-05,90420.0,90418.0,0.38413709]
[1731816679532,5.148e-05,90420.0,90419.0,0.32886409]
[1731816679717,5.148e-05,90420.0,90418.0,0.38413709]
[1731816680132,5.148e-05,90420.0,90419.0,0.11059622]
[1731816680322,5.148e-05,90420.0,90419.0,0.81923441]
[1731816680620,5.148e-05,90420.0,90419.0,0.49037032]
[1731816681125,0.00010235,90425.0,90424.0,0.05527]
[1731816681328,0.00010235,90425.0,90424.0,0.4350441]
[1731816682228,0.00010235,90425.0,90424.0,0.44919415]
[1731816682414,0.00010235,90425.0,90424.0,0.4350441]
[1731816682615,0.00010235,90425.0,90424.0,0.44919177]
[1731816683122,0.00010235,90425.0,90424.0,0.4350441]
[1731816683329,0.00010235,90425.0,90424.0,0.54563359]
[1731816683525,0.00010235,90425.0,90424.0,0.16585949]
[1731816683717,0.00010235,90425.0,90424.0,0.54602674]
[1731816684111,0.00010235,90425.0,90424.0,0.90682674]
[1731816684312,0.0052,90437.0,90436.0,0.055262]
[1731816684539,0.00165931,90443.0,90442.0,0.055259]
[1731816686129,0.00165931,90443.0,90442.0,0.25153057]
[1731816686328,0.00165931,90443.0,90442.0,0.25151799]
[1731816686517,0.00165931,90443.0,90442.0,0.055259]
[1731816687927,0.00165931,90443.0,90442.0,0.10031766]
[1731816688316,0.00165931,90443.0,90442.0,0.29644809]
[1731816688723,0.00165931,90443.0,90442.0,0.10031766]
[1731816689139,0.00165931,90443.0,90442.0,0.43203766]
[1731816689316,0.055243,90468.0,90442.0,0.43203766]
[1731816689317,0.16489442,90476.0,90454.0,0.055251]
[1731816689638,0.16489442,90476.0,90454.0,0.3608]
[1731816689639,0.10483157,90467.0,90454.0,0.3608]
[1731816689820,0.055241,90471.0,90465.0,0.055244]
[1731816690020,0.07548145,90476.0,90463.0,0.3608]
[1731816690021,0.04438145,90476.0,90463.0,0.3608]
[1731816690324,0.055237,90478.0,90463.0,0.3608]
[1731816690325,0.055237,90478.0,90464.0,0.00013803]
[1731816690628,0.055239,90474.0,90464.0,0.14400551]
[1731816690826,0.00011467,90479.0,90464.0,0.14400551]
[1731816691124,0.05535067,90479.0,90472.0,0.05524]
[1731816691325,0.05524,90473.0,90467.0,0.055243]
[1731816691528,0.055243,90468.0,90464.0,0.00013803]
[1731816691724,0.055243,90468.0,90464.0,0.05538303]
[1731816692428,0.044983,90479.0,90464.0,0.00013803]
[1731816692641,0.100219,90479.0,90477.0,0.3608]
[1731816692825,0.100219,90479.0,90472.0,0.05524]
[1731816692826,0.055238,90476.0,90472.0,0.05524]
[1731816693238,0.055239,90474.0,90472.0,0.05524]
[1731816694225,0.044983,90479.0,90464.0,0.00013803]
[1731816694226,0.055245,90465.0,90464.0,0.00013803]
[1731816694536,0.10483157,90466.0,90464.0,0.05538303]
[1731816694730,0.055245,90465.0,90464.0,0.00013803]
[1731816695035,0.152045,90465.0,90464.0,0.00013803]
[1731816702224,0.152045,90465.0,90464.0,0.05538303]
[1731816702535,0.0968,90465.0,90464.0,0.05538303]
[1731816702828,0.033,90465.0,90464.0,0.05538303]
[1731816703038,0.10483157,90475.0,90464.0,0.00013803]
[1731816703239,0.055242,90469.0,90467.0,0.055243]
[1731816703422,0.055243,90468.0,90467.0,0.055243]
[1731816703623,0.055245,90465.0,90464.0,0.00013803]
[1731816704926,0.055242,90470.0,90466.0,0.055244]
[1731816705124,0.055242,90470.0,90468.0,0.055242]
[1731816705525,0.055242,90469.0,90468.0,0.055242]
[1731816707437,0.25267057,90475.0,90471.0,0.055241]
[1731816707838,0.05524,90474.0,90471.0,0.055241]
[1731816708044,0.05524,90472.0,90471.0,0.055241]
[1731816708227,0.19743157,90475.0,90471.0,0.055241]
[1731816708427,0.05524,90473.0,90471.0,0.055241]
[1731816709343,0.19743157,90475.0,90471.0,0.055241]
[1731816709344,0.05524,90472.0,90471.0,0.055241]
[1731816709527,0.055242,90470.0,90467.0,0.055243]
[1731816710130,0.19743157,90475.0,90464.0,0.00013803]
[1731816710330,0.055245,90465.0,90464.0,0.00013803]
[1731816714946,0.04480895,90467.0,90465.0,0.055245]
[1731816715244,0.50983901,90475.0,90469.0,0.055248]
[1731816715245,0.09224,90472.0,90469.0,0.055248]
[1731816715432,0.09224,90472.0,90469.0,0.25164544]
[1731816715636,0.147486,90472.0,90469.0,0.19639744]
[1731816715841,0.147486,90472.0,90470.0,0.19639744]
[1731816716428,0.147486,90472.0,90471.0,0.19639744]
[1731816716632,0.147486,90472.0,90470.0,0.19639744]
[1731816716932,0.055246,90471.0,90469.0,0.1964767]
[1731816717135,0.055246,90471.0,90464.0,0.00013803]
[1731816717136,0.055248,90469.0,90464.0,0.00013803]
[1731816717339,0.05525,90465.0,90464.0,0.19661473]
[1731816717659,0.05525,90465.0,90464.0,0.00013803]
[1731816719537,0.38689,90465.0,90464.0,0.00013803]
[1731816720638,0.14749,90465.0,90464.0,0.00013803]
[1731816721037,0.05525,90465.0,90464.0,0.00013803]
[1731816721242,0.14753,90465.0,90464.0,0.00013803]
[1731816721642,0.28004115,90465.0,90464.0,0.00013803]
[1731816721843,0.28004115,90465.0,90464.0,0.05538903]
[1731816721844,0.13251115,90465.0,90464.0,0.05538903]
[1731816722239,0.09228,90466.0,90464.0,0.05538903]
[1731816722240,0.22479115,90466.0,90464.0,0.05538903]
[1731816722431,0.13251115,90465.0,90464.0,0.05538903]
[1731816722638,0.05525,90465.0,90464.0,0.00013803]
[1731816723037,0.10483157,90466.0,90464.0,0.00013803]
[1731816723243,0.29259272,90466.0,90464.0,0.00013803]
[1731816724044,0.18776115,90466.0,90464.0,0.00013803]
[1731816724245,0.05525,90466.0,90464.0,0.00013803]
[1731816724551,0.58679116,90467.0,90464.0,0.05538903]
[1731816724751,0.58679116,90467.0,90466.0,0.05525]
[1731816724752,0.3608,90467.0,90466.0,0.05525]
[1731816724948,0.45308,90467.0,90466.0,0.05525]
[1731816725165,0.3608,90467.0,90466.0,0.05525]
[1731816725351,0.09228,90470.0,90464.0,0.00013803]
[1731816725352,0.09228,90470.0,90469.0,0.055248]
[1731816725855,0.13251115,90470.0,90469.0,0.055248]
[1731816726250,0.3608,90473.0,90469.0,0.055248]
[1731816726251,0.13251115,90471.0,90469.0,0.055248]
[1731816726549,0.3608,90473.0,90469.0,0.055248]
[1731816726550,0.13251115,90470.0,90469.0,0.055248]
[1731816726856,0.3608,90473.0,90468.0,0.19666224]
[1731816727047,0.3608,90473.0,90465.0,0.29210401]
[1731816727048,0.3608,90473.0,90471.0,0.055246]
[1731816727242,0.22475115,90476.0,90465.0,0.0308]
[1731816727243,0.09224,90476.0,90475.0,0.055244]
[1731816728555,0.04367151,90478.0,90475.0,0.055244]
[1731816728752,0.22486582,90479.0,90475.0,0.055244]
[1731816728944,0.22486582,90479.0,90471.0,0.19666224]
[1731816729151,0.09235467,90479.0,90477.0,0.055243]
[1731816729952,0.00011467,90479.0,90477.0,0.25190524]
[1731816730158,0.00011467,90479.0,90477.0,0.055243]
[1731816730361,0.00011467,90479.0,90477.0,0.31654701]
[1731816730546,0.00011467,90479.0,90477.0,0.055243]
[1731816730947,0.00011467,90479.0,90477.0,0.31654701]
[1731816731163,0.00011467,90479.0,90478.0,0.26130401]
[1731816731352,0.00011467,90479.0,90477.0,0.31654701]
[1731816731865,0.00011467,90479.0,90477.0,0.26130401]
[1731816732046,0.00011467,90479.0,90474.0,0.0317]
[1731816732047,0.055243,90477.0,90474.0,0.26130401]
[1731816732246,0.055243,90477.0,90476.0,0.19667266]
[1731816732445,0.055243,90477.0,90475.0,0.19667266]
[1731816732650,0.416043,90477.0,90475.0,0.19667266]
[1731816732850,0.055245,90473.0,90471.0,0.19667266]
[1731816733048,0.4238,90476.0,90467.0,0.26130401]
[1731816733049,0.09224,90476.0,90467.0,0.19667266]
[1731816733243,0.055248,90468.0,90466.0,0.19667266]
[1731816733652,0.055248,90468.0,90461.0,0.26130401]
[1731816733653,0.05525,90466.0,90465.0,0.19667266]
[1731816733853,0.05525,90466.0,90458.0,0.0051]
[1731816733854,0.05525,90466.0,90464.0,0.19681069]
[1731816734646,0.05525,90466.0,90464.0,0.00013803]
[1731816736370,0.14749,90466.0,90464.0,0.03073803]
[1731816737263,0.14749,90466.0,90464.0,0.00013803]
[1731816738782,0.50829,90466.0,90464.0,0.00013803]
[1731816739060,0.3647,90465.0,90464.0,0.00013803]
[1731816740200,0.3647,90465.0,90453.0,0.0051]
[1731816740201,0.055257,90454.0,90453.0,0.0051]
[1731816740477,0.055257,90454.0,90441.0,0.26130401]
[1731816740478,0.49316006,90454.0,90441.0,0.0051]
[1731816740659,0.49316006,90454.0,90437.0,0.19667266]
[1731816740660,0.3608,90445.0,90437.0,0.19667266]
[1731816740853,0.3608,90445.0,90436.0,0.19667266]
[1731816741061,0.3608,90445.0,90437.0,0.00013413]
[1731816741972,0.055265,90441.0,90437.0,0.00013413]
[1731816742157,0.3608,90445.0,90441.0,0.055264]
[1731816742464,0.09228,90444.0,90443.0,0.055263]
[1731816742968,0.3608,90445.0,90443.0,0.055263]
[1731816743669,0.3608,90445.0,90444.0,0.0319]
[1731816744169,0.3608,90445.0,90437.0,0.00013413]
[1731816744170,0.3608,90445.0,90437.0,0.19680679]
[1731816744375,0.3608,90445.0,90437.0,0.00013413]
[1731816745072,0.055266,90439.0,90437.0,0.00013413]
[1731816745865,0.16009757,90439.0,90437.0,0.00013413]